Cogmind - Beta 13 @@@ ROGUE MODE // 2024.04.01 @ 16:26:27 Player: MAX Result: Destroyed by G-34 Mercenary with Small Laser Performance ------------- Evolutions (1) 500 Regions Visited (2) 400 Robots Destroyed (18) 90 Value Destroyed (355) 355 Prototype IDs (0) 0 Alien Tech Used (0) 0 Bonus (0) 0 TOTAL SCORE: 1345 Bonus ------- None Cogmind --------- Core Integrity 0/400 Matter 290/300 Energy 100/100 System Corruption 0% Temperature Cool (12) Movement Walking (680) Ox8 Location -9/Materials Parts ------- > --- POWER (2) -------- (None) > --- PROPULSION (2) --- Aluminum Leg > --- UTILITY (2) ------ Huge Storage Unit Power Shielding > --- WEAPON (3) ------- (None) > --- INVENTORY (25) --- Small Storage Unit Small Storage Unit Targeting Computer Peak State ------------ > --- POWER ------------ Ion Engine > --- PROPULSION ------- VTOL Module VTOL Module > --- UTILITY ---------- Huge Storage Unit Power Shielding > --- WEAPON ----------- Assault Rifle Grenade Launcher Hammer > --- INVENTORY -------- Aluminum Leg Small Storage Unit Targeting Computer EM Pulse Gun [Rating: 10] Favorites ----------- Power Light Ion Engine Engine Light Ion Engine Propulsion Aluminum Leg Leg Aluminum Leg Flight Unit VTOL Module Utility Huge Storage Unit Device Structural Scanner Storage Huge Storage Unit Protection Power Shielding Weapon Assault Rifle Energy Gun EM Pulse Gun Ballistic Gun Assault Rifle Launcher Grenade Launcher Special Weapon Mining Laser Impact Weapon Hammer Build | -11 -10 -9 ------- Run | Yrd Mat Mat Slots Evolved 2 | . . 2 Power 1 | . . 1 Propulsion . | . . . Utility . | . . . Weapon 1 | . . 1 Parts Attached 18 | 5 5 8 Power 2 | 1 . 1 Engine 2 | 1 . 1 Core . | . . . Reactor . | . . . Propulsion 5 | 2 . 3 Treads . | . . . Leg 3 | 2 . 1 Wheel . | . . . Hover . | . . . Flight 2 | . . 2 Utility 5 | . 4 1 Device 2 | . 2 . Storage 2 | . 2 . Processor . | . . . Hackware . | . . . Protection 1 | . . 1 Artifact . | . . . Weapon 6 | 2 1 3 Energy Gun 2 | 1 . 1 Energy Cannon . | . . . Ballistic Gun 1 | 1 . . Ballistic Cannon . | . . . Launcher 1 | . 1 . Special Weapon 1 | . . 1 Impact Weapon 1 | . . 1 Slashing Weapon . | . . . Piercing Weapon . | . . . Special Melee Weapon . | . . . Unidentified Prototypes . | . . . Parts Lost 9 | . . 9 Power 2 | . . 2 Propulsion 2 | . . 2 Utility . | . . . Weapon 5 | . . 5 Highest Loss Streak 5 | . . 5 To Critical Strikes . | . . . Average Slot Usage (%) 79 | . 95 66 Engine 9 | . 14 6 Leg 19 | . 28 12 Flight 2 | . . 4 Device 5 | . 11 . Storage 11 | . 11 11 Protection 1 | . . 3 Energy Gun 1 | . 2 . Ballistic Gun 11 | . 14 9 Launcher 10 | . 11 9 Special Weapon 1 | . . 2 Impact Weapon 3 | . . 6 Naked Turns . | . . . Heaviest Build 93 | 7 88 93 Greatest Support 20 | 20 20 20 Greatest Overweight (x) 28 | . 4 28 Average Overweight (x) 1 | . . 6 Largest Inventory Capacity 25 | 5 25 25 Average Capacity 16 | 5 9 25 Most Carried 8 | 5 8 7 Average Carried 5 | 2 6 5 Final Capacity 25 | 5 25 25 Final Carried 8 | 5 8 3 Class Distribution -------------------- 87% | Mutant 12% | Gunner Dominant Class ---------------- Mutant | -10/Materials Mutant | -9/Materials Resources | -11 -10 -9 ----------- Run | Yrd Mat Mat Matter Collected 534 | 256 94 184 Remotely . | . . . Salvage Created 640 | 54 220 366 Parts 31 | 4 13 14 Haulers Intercepted . | . . . Recyclers Shooed 3 | . . 3 Parts Field Recycled . | . . . Retrieved Matter . | . . . Parts Self-Destructed . | . . . Prevented . | . . . Kills | -11 -10 -9 ------- Run | Yrd Mat Mat Combat Hostiles Destroyed 10 | 1 4 5 Guns 8 | 1 3 4 AOE 1 | . 1 . Classes Destroyed 7 | 2 4 1 Worker 3 | . 2 1 Tunneler 1 | 1 . . Recycler 3 | . 1 2 Watcher 1 | . 1 . Swarmer 3 | . 3 . Grunt 6 | 1 1 4 Duelist 1 | . . 1 Best Kill Streak 4 | 2 4 2 Combat Bots Only 3 | 1 3 2 Max Kills in Single Turn 2 | 1 2 1 Gunslinging 1 | . 1 . Exploded 1 | . 1 . Melee . | . . . Uniques/NPCs Destroyed . | . . . Combat | -11 -10 -9 -------- Run | Yrd Mat Mat Hostile Shots Fired 118 | 7 8 103 Missed 36 | 2 2 32 Damage Taken 1110 | 52 121 937 Core 448 | 10 34 404 Absorbed by Shields . | . . . Redirected to Shielding 21 | . . 21 Regen/Repaired (Parts) 28 | . 28 . Core Remaining (%) 89 | 96 82 . Volleys Fired 49 | 3 18 28 Largest 2 | 2 2 2 Hottest 120 | 60 60 120 Shots Fired 65 | 5 24 36 Gun 54 | 5 21 28 Cannon . | . . . Launcher 8 | . 3 5 Special 3 | . . 3 Kinetic 43 | 2 18 23 Thermal 3 | . . 3 Explosive 8 | . 3 5 Electromagnetic 11 | 3 3 5 Robot Hit Streak 8 | 2 5 8 Robot Miss Streak 8 | 1 8 3 Penetration Max . | . . . Secondary Targets 1 | . 1 . Max Gunslinging Chain 1 | . 1 . Shots Hit Robots 50 | 3 13 34 Core Hits 23 | 4 11 8 Critical Kills . | . . . Critical Parts Destroyed 1 | . . 1 Critical Strikes 2 | . 1 1 Destroy 1 | . . 1 Corrupt 1 | . 1 . Melee Attacks 15 | . . 15 Impact 15 | . . 15 Slashing . | . . . Piercing . | . . . Sneak Attacks 6 | . . 6 Combat Hostiles . | . . . Follow-up Attacks . | . . . Damage Inflicted 1286 | 60 360 866 Guns 448 | 41 146 261 Cannons . | . . . Explosions 383 | . 203 180 Melee 411 | . . 411 Ramming 44 | 19 11 14 Kinetic 335 | 26 110 199 Thermal . | . . . Explosive 383 | . 203 180 Electromagnetic 113 | 15 36 62 Impact 411 | . . 411 Slashing . | . . . Piercing . | . . . Highest Corruption . | . . . Average Corruption . | . . . Corruption Purged . | . . . Corruption Blocked . | . . . Overload Shots . | . . . Overflow Damage 131 | . 16 115 Projectiles 14 | . . 14 Explosions 20 | . 16 4 Melee 97 | . . 97 Knockbacks 4 | . 1 3 Impact 3 | . 1 2 Kinetic . | . . . Secondary 1 | . . 1 Self-Inflicted Damage 96 | . 67 29 Shots 4 | . 2 2 Rammed . | . . . Targets Rammed 11 | 4 4 3 Kicked 11 | 4 4 3 Crushed . | . . . Highest Temperature 11 | 1 . 11 Average Temperature 4 | 1 . 5 Received Heat Transfer 546 | 30 12 504 Siege Activations . | . . . Robots Corrupted . | . . . Combat Hostiles . | . . . Parts Fried 2 | . . 2 Impact Corruptions 8 | . . 8 Robots Melted . | . . . Combat Hostiles . | . . . Parts Melted . | . . . Heat Transferred . | . . . Parts Sabotaged . | . . . Parts Stolen . | . . . Parts Stripped . | . . . Power Chain Reactions . | . . . Alert | -11 -10 -9 ------- Run | Yrd Mat Mat Peak Influence 156 | 25 156 147 Initial 24 | . 16 24 Average 55 | 6 90 39 Maximum Alert Level . | . . . Low Security (%) 100 | 100 100 100 Level 1 . | . . . Level 2 . | . . . Level 3 . | . . . Level 4 . | . . . Level 5 . | . . . High Security . | . . . Max Security . | . . . Squads Dispatched 1 | . 1 . Investigation 1 | . 1 . Extermination . | . . . Reinforcement . | . . . Assault . | . . . Garrison . | . . . Intercept . | . . . Searches Triggered . | . . . Construction Impeded . | . . . Haulers Reinforced . | . . . Active Scanning Responses . | . . . Cargo Convoy Interrupts . | . . . Stealth | -11 -10 -9 --------- Run | Yrd Mat Mat Distress Signals 3 | . 2 1 Communications Jammed . | . . . Distress Signals . | . . . Times Spotted 24 | 1 12 11 Peak Tracking Total 5 | 1 5 4 Tactical Retreats 1 | . . 1 Traps | -11 -10 -9 ------- Run | Yrd Mat Mat Traps Triggered 1 | . 1 . Indirectly . | . . . Trap Hack Attempts . | . . . Triggered . | . . . Disarmed . | . . . Reprogrammed . | . . . Reused . | . . . Traps Extracted . | . . . Installed . | . . . Triggered . | . . . Machines | -11 -10 -9 ---------- Run | Yrd Mat Mat Machines Disabled 3 | . 2 1 Max in Single Turn 1 | . 1 1 Machines Repaired . | . . . Machines Dismantled . | . . . Machines Sabotaged . | . . . Overloaded Fab Kills . | . . . Hacking | -11 -10 -9 --------- Run | Yrd Mat Mat Machines Accessed 2 | . 2 . Terminals . | . . . Fabricators . | . . . Repair Stations 1 | . 1 . Recycling Units 1 | . 1 . Scanalyzers . | . . . Garrison Access . | . . . Total Hacks 9 | . 9 . Successful 6 | . 6 . Failed 3 | . 3 . Catastrophic . | . . . Database Lockouts . | . . . Manual 5 | . 5 . Terminals . | . . . Fabricators . | . . . Repair Stations 5 | . 5 . Recycling Units 4 | . 4 . Scanalyzers . | . . . Garrison Access . | . . . Terminal Hacks . | . . . Fabricator Hacks . | . . . Repair Station Hacks 3 | . 3 . Scan Component 1 | . 1 . Repair 1 | . 1 . Refit 1 | . 1 . Recycling Unit Hacks 3 | . 3 . Recycle Component 1 | . 1 . Report Inventory 1 | . 1 . Retrieve Components 1 | . 1 . Scanalyzer . | . . . Garrison Access Hacks . | . . . Unauthorized Hacks . | . . . Terminals . | . . . Fabricators . | . . . Repair Stations . | . . . Recycling Units . | . . . Scanalyzers . | . . . Garrison Access . | . . . Data Cores Recovered . | . . . Used . | . . . Hacking Detections 2 | . 2 . Full Trace Events 1 | . 1 . Feedback Events . | . . . Feedback Blocked . | . . . Robot Schematics Acquired . | . . . Robots Built . | . . . Authchips . | . . . Time . | . . . Total Robot Build Rating . | . . . Part Schematics Acquired . | . . . Parts Built . | . . . Authchips . | . . . Time . | . . . Total Part Build Rating . | . . . Parts Repaired 1 | . 1 . Time 26 | . 26 . Parts Recycled 1 | . 1 . Recycled Matter . | . . . Retrieved Matter . | . . . Retrieved Components 3 | . 3 . Parts Scanalyzed . | . . . Part Schematics Acquired . | . . . Parts Damaged . | . . . Bothacking | -11 -10 -9 ------------ Run | Yrd Mat Mat Used RIF Installer . | . . . Robots Hacked . | . . . Non-combat . | . . . Combat . | . . . Robot Hacks Applied . | . . . Relay Couplers Released . | . . . Fabnet Peak Effective % . | . . . Robots Rewired . | . . . Allies Hacked . | . . . Hacks Repelled . | . . . Allies | -11 -10 -9 -------- Run | Yrd Mat Mat Total Allies . | . . . Largest Group . | . . . Highest-Rated Group . | . . . Highest-Rated Ally . | . . . Total Orders . | . . . Ally Attacks . | . . . Total Damage . | . . . Kills . | . . . Allies Corrupted . | . . . Allies Melted . | . . . Intel | -11 -10 -9 ------- Run | Yrd Mat Mat Robot Analysis Total . | . . . Derelict Logs Recovered . | . . . Drone Launches . | . . . Drone Recoveries . | . . . Exploration | -11 -10 -9 ------------- Run | Yrd Mat Mat Turns Passed 1502 | 176 596 730 Spaces Moved 660 | 151 404 105 Core 48 | 45 . 3 Treads . | . . . Legs 597 | 106 404 87 Wheels . | . . . Hover . | . . . Flight 15 | . . 15 Fastest Speed 50 | 50 120 400 Average Speed 193 | 99 131 568 Slowest Speed 1450 | 120 400 1450 Overloaded Moves . | . . . Propulsion Burnouts . | . . . Robots Hopped . | . . . Cave-ins Triggered . | . . . Exploration Rate (%) 19 | 6 43 10 Regions Visited 2 Branch Regions . Pre-discovered Areas . | . . . Known Exits Taken . | . . . Unknown Exits Taken 2 | 1 1 . Scrap Searched . | . . . Spaces Dug . | . . . Terrain Destroyed 36 | . 11 25 Melee . | . . . Projectile 2 | . . 2 AOE 34 | . 11 23 Terrain Rammed . | . . . Walls Destroyed . | . . . Machines Disabled . | . . . Actions | -11 -10 -9 --------- Run | Yrd Mat Mat Total 782 | 170 451 161 Wait . | . . . Move 658 | 150 403 105 Hop . | . . . Pick Up 23 | 8 13 2 Fast Attach 2 | 2 . . Attach 13 | 3 3 7 Detach 1 | . 1 . Swap 3 | . 2 1 Drop 7 | . 7 . Fire 49 | 3 18 28 Melee 15 | . . 15 Ram . | . . . Kick 11 | 4 4 3 Crush . | . . . Escape Stasis . | . . . Rewire . | . . . Trap . | . . . Miscellaneous . | . . . Route ------- -11/Scrapyard -10/Materials (discovered 2 exits: [*Mat] / [Sub]) -9/Materials History --------- Turn | Location | Event 2 | -11/Scrapyard | Met Revision 17 106 | -11/Scrapyard | Discovered new exit (range 8) 177 | -11/Scrapyard | Entered Materials 300 | -10/Materials | Build established: Mutant 423 | -10/Materials | Discovered new exit (range 15) 569 | -10/Materials | Repaired Lgt. Ion Engine? 735 | -10/Materials | Discovered new exit (range 10) 773 | -10/Materials | Entered another Materials area 773 | -9/Materials | Evolved 2 slots: Power x1, Weapon x1 1449 | -9/Materials | Core integrity fell below 50% 1454 | -9/Materials | Lost 5 parts (1p2n2w) 1487 | -9/Materials | Core integrity fell below 20% 1503 | -9/Materials | Destroyed by G-34 Mercenary with Small Laser Last Messages --------------- K-01 Serf collects debris. R-06 Scavenger inserts Corrupted Sml. Storage Unit into recycling unit. EM Pulse Gun destroyed. K-01 Serf collects debris. R-06 Scavenger inserts Wheel into recycling unit. K-01 Serf collects debris. R-06 Scavenger inserts Aluminum Leg into recycling unit. R-06 Scavenger collects Corrupted Aluminum Leg. K-01 Serf collects debris. R-06 Scavenger collects Aluminum Leg. K-01 Serf collects debris. R-06 Scavenger collects Heat Sink. R-06 Scavenger collects Corrupted Sml. Laser. Critical hit (Burn: +37). Hammer destroyed. K-01 Serf cleans the Atomic Centrifuge. [Achievement: First Step to Greatness] Map ----- +----------------------------------------------------+ | ?????????????????????????????????????????????????? | | ?????????????????????????????????????????????????? | | ?????????????????????????????????????????????????? | | ?????????????????????????????????????????????????? | | ?????????????????????????????????????????????????? | | ?????????????????????????????????????????????????? | | ?????????????????????????????????????????????????? | | ?????????????????????????????????????????????????? | | ?????????????????????????????????????????????????? | | ?????????????????????????????????????????????????? | | ??????????????????????????????## ????????????????? | | ????????????????????????????? ?????????????????? | | ????????????????????????????? ????????????????? | | ????????????????????????????? ?????????????????? | | ????????????????????????????# ???? ????????????? | | ????????????????????????????# ""??=#????????????? | | ????????????????????????????# """ #????????????? | | ????????????????????????""??# """ +????????????? | | ?????????????????????????"??# """ #????????????? | | ?????????????????????????? ## ?????????????? | | ????????????????????#? "?? # ?????????????? | | ????????????????????# ""??+ "Y" ??????????????? | | ????????????????????# """?# ""????????????????? | | ????????????????????# # #???????????####### | | ????????????????????# ##+### #????????########## | | ??????????????????##### @ g ############# * | | ?????????????# gg% r% % + | | ?????????????# ############# | | ??????????? k ##????????#### | | ??????????? w """ """ ##+##???????????# | | ???????????? """ """ # ???????????# """ " | | ????????????????""" """ # """???????????# """ " | | ???????????????? + """ ??????????# """ " | | ???????????????? # """ "?????????####### | | ????????????????##?### # ? ????????????# | | ?????????????????????###########??#?########### | | ????????????????????????????????????# # | | ????????????????????????????????????# + | | ????????????????????????????????????# # | | ????????????????????????????????????# # | | ????????????????????????????????????# # | | ????????????????????????????????????# # | | ????????????????????????????????????# # | | ????????????????????????????????????# # | | ????????????????????????????????????########### | | ??????????????????????????????????????????????# | | ??????????????????????????????????????????????# | | ??????????????????????????????????????????????# | | ??????????????????????????????????????????????#### | | ?????????????????????????????????????????????????? | +----------------------------------------------------+ Best States ------------- Heat Dissipation 28 Energy Generation 10 Energy Capacity 250 Matter Stores 300 Matter Capacity 300 Sight Range 16 Terrain Scan Density 10 Power Shielding 33 Evasion (%) 55 Item Schematics ----------------- None Robot Schematics ------------------ None Fabricated ------------ Nothing Alien Tech Used ----------------- None Achievements -------------- First Step to Greatness Part-time Mechanic Storm Trooper Challenges ------------ None Game ------ Seed ExplosiveFrostFirepult Manual? 0 Play Time 00:23:27 Cumulative 0.3 hours Start 2024.03.31 @ 20:27:12 End 2024.04.01 @ 16:26:27 Sessions 1 Manual Loads 0 Difficulty Rogue Special Mode None Game No. 1 Rogue 1 Adventurer 0 Explorer 0 Win Type - Total 0 Types 0/0/0/0/0/0/0/0/0 Lore% 0 Gallery% 1 Achievement% 1 Wizard Run 0 Options --------- Layout 1 ASCII 0 Keyboard 0 Movement Arrows Keybinds 0 Fullscreen 1 Font 32/SmallcapsGlow Map View 50x35 Zoom Use 0% Tactical HUD 0 Map Filters NONE Filters NONE Steam 1 RUN: 98e1b41e-204b-4bbd-bf0e-af7c24a430ce